bitfinex/quotes_BTCUSD_20241223
["timestamp","ask_amount","ask_price","bid_price","bid_amount"]
[1734976130372,1.62773735,93392.0,93377.0,8.55e-05]
[1734976131052,1.39644835,93392.0,93377.0,8.55e-05]
[1734976131264,0.25398632,93392.0,93377.0,8.55e-05]
[1734976132418,0.25898632,93392.0,93377.0,8.55e-05]
[1734976132629,0.25598632,93392.0,93377.0,8.55e-05]
[1734976132845,0.25398632,93392.0,93377.0,8.55e-05]
[1734976133064,0.25698632,93392.0,93377.0,8.55e-05]
[1734976133253,0.25798632,93392.0,93377.0,8.55e-05]
[1734976133475,0.004,93392.0,93377.0,8.55e-05]
[1734976133719,0.001,93392.0,93377.0,8.55e-05]
[1734976133964,0.25498632,93392.0,93377.0,8.55e-05]
[1734976134664,0.25398632,93392.0,93377.0,8.55e-05]
[1734976134897,0.25598632,93392.0,93377.0,8.55e-05]
[1734976135136,0.25798632,93392.0,93377.0,8.55e-05]
[1734976135377,0.25598632,93392.0,93377.0,8.55e-05]
[1734976135868,0.152,93392.0,93377.0,8.55e-05]
[1734976136128,0.002,93392.0,93377.0,8.55e-05]
[1734976136860,0.578294,93394.0,93377.0,8.55e-05]
[1734976138567,0.578294,93394.0,93377.0,0.2142705]
[1734976138812,0.579294,93394.0,93377.0,8.55e-05]
[1734976139056,0.580294,93394.0,93377.0,8.55e-05]
[1734976140067,0.214151,93392.0,93377.0,8.55e-05]
[1734976140299,0.56813732,93392.0,93377.0,8.55e-05]
[1734976141059,0.66806306,93392.0,93377.0,8.55e-05]
[1734976141313,0.56806306,93392.0,93377.0,8.55e-05]
[1734976141542,0.66806306,93392.0,93377.0,8.55e-05]
[1734976141807,0.56806306,93392.0,93377.0,8.55e-05]
[1734976142545,0.46867524,93392.0,93377.0,8.55e-05]
[1734976142789,0.46813732,93392.0,93377.0,8.55e-05]
[1734976143033,0.364151,93392.0,93377.0,8.55e-05]
[1734976143570,0.366151,93392.0,93377.0,8.55e-05]
[1734976143827,0.366151,93392.0,93377.0,0.2142685]
[1734976144346,0.002,93392.0,93390.0,0.214155]
[1734976144611,0.00053279,93401.0,93391.0,0.00115615]
[1734976144871,0.00053279,93401.0,93400.0,0.214132]
[1734976145388,0.00053279,93401.0,93400.0,0.21963088]
[1734976146152,0.00053279,93401.0,93400.0,0.22663088]
[1734976146413,0.00053279,93401.0,93400.0,0.21963088]
[1734976146651,0.00053279,93401.0,93400.0,0.22663088]
[1734976147096,0.001,93401.0,93400.0,0.52420869]
[1734976147340,0.001,93401.0,93400.0,0.54720869]
[1734976147582,0.15896397,93420.0,93400.0,0.2445852]
[1734976147793,0.001,93401.0,93400.0,0.14075871]
[1734976148038,0.001,93401.0,93400.0,0.13375871]
[1734976148252,0.15896397,93420.0,93401.0,0.21413]
[1734976148465,0.15,93429.0,93401.0,0.21413]
[1734976148673,0.214105,93412.0,93400.0,0.13475871]
[1734976148906,0.214091,93418.0,93400.0,0.12925983]
[1734976149117,0.15,93417.0,93400.0,0.12925983]
[1734976149339,0.15,93409.0,93401.0,0.00544591]
[1734976149562,0.428243,93405.0,93401.0,0.00744591]
[1734976149791,0.428243,93405.0,93400.0,0.00115983]
[1734976150009,0.214121,93405.0,93400.0,0.00015983]
[1734976150217,0.428244,93405.0,93400.0,0.00515983]
[1734976150422,0.214122,93405.0,93400.0,0.00515983]
[1734976150626,0.15,93404.0,93400.0,0.00015983]
[1734976151089,0.15,93404.0,93400.0,0.00115983]
[1734976151358,0.15,93404.0,93400.0,0.00415983]
[1734976151546,0.15,93404.0,93400.0,0.00115983]
[1734976151793,0.214122,93405.0,93400.0,0.00115983]
[1734976151973,0.214122,93405.0,93400.0,0.00215983]
[1734976152216,0.214122,93405.0,93400.0,0.00015983]
[1734976152438,0.30896397,93420.0,93400.0,0.00015983]
[1734976152439,0.214125,93404.0,93400.0,0.00015983]
[1734976152666,0.53240752,93404.0,93400.0,0.00215983]
[1734976152870,0.53240752,93404.0,93400.0,0.00015983]
[1734976153077,0.53240752,93404.0,93400.0,0.00215983]
[1734976153509,0.53240752,93404.0,93400.0,0.00315983]
[1734976153749,0.15,93403.0,93400.0,0.00315983]
[1734976153972,0.15,93403.0,93400.0,0.00215983]
[1734976154402,0.15,93401.0,93400.0,0.00215983]
[1734976155091,0.15,93401.0,93400.0,0.00115983]
[1734976156570,0.15,93401.0,93400.0,0.00015983]
[1734976157955,0.25398632,93401.0,93400.0,0.00015983]
[1734976160377,0.25598632,93401.0,93400.0,0.00015983]
[1734976160738,0.25398632,93401.0,93400.0,0.00015983]
[1734976160941,0.15,93401.0,93400.0,0.00015983]
[1734976161164,0.0001712,93404.0,93400.0,0.00015983]
[1734976161350,0.0001712,93404.0,93395.0,0.00125983]
[1734976161570,0.0001712,93404.0,93401.0,0.00579696]
[1734976161769,0.0001712,93404.0,93395.0,0.00125983]
[1734976161770,0.002,93401.0,93395.0,0.00125983]
[1734976162173,0.002,93401.0,93391.0,8.55e-05]
[1734976162174,0.21613,93401.0,93396.0,0.00581025]
[1734976162592,0.21613,93401.0,93395.0,0.002]
[1734976162828,0.21613,93401.0,93391.0,0.00061829]
[1734976162829,0.0001712,93404.0,93393.0,0.214148]
[1734976163042,0.214125,93403.0,93393.0,0.214148]
[1734976163243,0.15,93402.0,93395.0,0.003]
[1734976163448,0.15,93402.0,93396.0,0.00581025]
[1734976163663,0.0001712,93404.0,93401.0,0.214129]
[1734976163873,0.0001712,93404.0,93403.0,0.214125]
[1734976164118,0.0031712,93404.0,93403.0,0.34111132]
[1734976164328,0.0031712,93404.0,93403.0,0.52186246]
[1734976164533,0.0001712,93404.0,93403.0,0.52186246]
[1734976164737,0.0001712,93404.0,93403.0,0.63175828]
[1734976166034,0.0001712,93404.0,93403.0,0.98723081]
[1734976166682,0.0001712,93404.0,93403.0,0.98623081]
[1734976167115,0.0021712,93404.0,93403.0,0.63175828]
[1734976167582,0.0021712,93404.0,93403.0,0.63275828]
[1734976167797,0.0021712,93404.0,93403.0,0.53275828]
[1734976168334,0.0021712,93404.0,93403.0,0.47163496]
[1734976168810,0.0021712,93404.0,93403.0,0.44863496]
[1734976169045,0.15,93429.0,93403.0,0.19164696]
[1734976169262,0.15,93429.0,93419.0,0.214087]
[1734976169467,0.15,93429.0,93420.0,0.00564057]
[1734976169670,0.15,93429.0,93416.0,0.214095]
[1734976169877,0.15,93429.0,93418.0,0.214091]
[1734976170112,0.002,93429.0,93418.0,0.214091]
[1734976170346,0.002,93429.0,93420.0,0.214086]
[1734976170558,0.15,93430.0,93420.0,0.214086]
[1734976170757,0.15015983,93430.0,93421.0,0.00564466]
[1734976170969,0.15,93428.0,93416.0,0.001]
[1734976171166,0.15,93428.0,93422.0,0.00564201]
[1734976171569,0.00015983,93430.0,93422.0,0.00564201]
[1734976171789,0.00015983,93430.0,93421.0,0.214084]
[1734976171988,0.00015983,93430.0,93423.0,0.00563935]
[1734976172191,0.00015983,93430.0,93422.0,0.00564201]
[1734976172402,0.00015983,93430.0,93427.0,0.42814]
[1734976172609,0.00015983,93430.0,93429.0,0.21272206]
[1734976172830,0.00015983,93430.0,93429.0,0.32098958]
[1734976173464,0.00015983,93430.0,93429.0,0.36898958]
[1734976173907,0.00015983,93430.0,93429.0,0.39198958]
[1734976174130,0.00015983,93430.0,93429.0,0.46780266]
[1734976174543,0.00015983,93430.0,93429.0,0.66780266]
[1734976174756,0.00015983,93430.0,93429.0,0.81780266]
[1734976174967,0.00015983,93430.0,93429.0,0.82680266]
[1734976175196,0.00015983,93430.0,93429.0,0.93070266]
[1734976175407,8.3e-07,93430.0,93429.0,0.81780266]
[1734976175618,0.0765,93486.0,93446.0,0.214027]
[1734976175817,0.00053497,93487.0,93446.0,0.70636412]
[1734976176025,0.00053497,93492.0,93446.0,0.75436412]
[1734976176325,0.213903,93501.0,93485.0,0.213936]
[1734976176529,0.00016013,93492.0,93485.0,0.213936]
[1734976176774,0.00016013,93492.0,93486.0,0.00530927]
[1734976176949,0.10452129,93491.0,93464.0,0.213984]
[1734976177144,0.00053497,93491.0,93477.0,0.213956]
[1734976177347,0.00016013,93492.0,93481.0,0.213945]
[1734976177546,0.00016013,93492.0,93478.0,0.00529712]
[1734976177744,0.00016013,93492.0,93482.0,0.00528532]
[1734976178074,0.00016013,93492.0,93489.0,0.213928]
[1734976178295,0.00016013,93492.0,93483.0,0.21922367]
[1734976178494,0.00016013,93492.0,93490.0,0.0052641]
[1734976178676,0.00016013,93492.0,93487.0,0.213932]
[1734976178821,0.00016013,93492.0,93483.0,0.23586337]
[1734976178822,0.00016013,93492.0,93483.0,0.213941]
[1734976179245,0.00016013,93492.0,93484.0,0.00526703]
[1734976179870,0.00016013,93492.0,93487.0,0.003]
[1734976180205,0.00016013,93492.0,93488.0,0.00525642]
[1734976181286,0.00016013,93492.0,93489.0,0.427856]
[1734976181516,0.00016013,93492.0,93490.0,0.0052154]
[1734976181712,0.00016013,93492.0,93491.0,0.213924]
[1734976182160,0.00116013,93492.0,93491.0,0.00521234]
[1734976182373,0.00116013,93492.0,93483.0,0.213941]
[1734976182574,0.00116013,93492.0,93460.0,0.16235712]
[1734976182575,0.00116013,93492.0,93484.0,0.14677542]
[1734976182784,0.00016013,93492.0,93484.0,0.10505586]
[1734976183055,0.00016013,93492.0,93491.0,0.003]
[1734976183480,0.00016013,93492.0,93489.0,0.213928]
[1734976183728,0.00016013,93492.0,93491.0,0.213924]
[1734976183938,0.00116013,93492.0,93491.0,0.37109415]
[1734976184151,0.00116013,93492.0,93491.0,0.39409415]
[1734976184361,0.00116013,93492.0,93491.0,0.62169415]
[1734976185387,0.0001712,93498.0,93497.0,0.2]
[1734976185641,0.000171,93503.0,93502.0,0.223]
[1734976185877,0.00070435,93503.0,93502.0,0.32698632]
[1734976186296,0.00070435,93503.0,93502.0,0.55458632]
[1734976186712,0.000171,93509.0,93508.0,0.413885]
[1734976186924,0.000171,93509.0,93508.0,0.63910805]
[1734976187342,0.0827,93550.0,93513.0,0.023]
[1734976187551,0.213804,93544.0,93526.0,0.213842]
[1734976187761,0.213804,93544.0,93528.0,0.213839]
[1734976187970,0.08285997,93550.0,93528.0,0.213838]
[1734976188185,0.08285997,93550.0,93512.0,0.023]
[1734976188186,0.08285997,93550.0,93536.0,0.213819]
[1734976188399,0.00015997,93550.0,93539.0,0.213813]
[1734976188607,0.00015997,93550.0,93540.0,0.00106893]
[1734976188814,0.00015997,93550.0,93541.0,0.213809]
[1734976189022,0.00015997,93550.0,93545.0,0.213798]
[1734976189430,0.00115997,93550.0,93545.0,0.213798]
[1734976189849,0.00015997,93550.0,93545.0,0.213798]
[1734976190058,0.00015997,93550.0,93545.0,0.427596]
[1734976190240,0.00015997,93550.0,93547.0,0.427592]
[1734976190489,0.00015997,93550.0,93549.0,0.213791]
[1734976190698,0.00015997,93550.0,93549.0,0.31777732]
[1734976192602,0.00115997,93550.0,93549.0,0.31777732]
[1734976192808,0.00115997,93550.0,93549.0,0.39872915]
[1734976193022,0.00115997,93550.0,93549.0,0.42172915]
[1734976193290,0.00115997,93550.0,93549.0,0.52172915]
[1734976193500,0.00115997,93550.0,93549.0,0.44077732]
[1734976194561,0.00015997,93550.0,93549.0,0.44077732]
[1734976195723,0.00015997,93550.0,93549.0,0.34077732]
[1734976196347,0.00015997,93550.0,93549.0,0.31777732]
[1734976196779,0.00015997,93550.0,93549.0,0.34077732]
[1734976196979,0.00015997,93550.0,93549.0,0.43761495]
[1734976197226,0.00015997,93550.0,93549.0,0.86571495]
[1734976197227,9.7e-07,93550.0,93549.0,0.86571495]
[1734976197456,0.0001712,93560.0,93559.0,0.586768]
[1734976197670,8.55e-05,93578.0,93568.0,0.2011]
[1734976197881,8.55e-05,93578.0,93568.0,0.30615467]
[1734976198091,8.55e-05,93578.0,93568.0,0.65944979]
[1734976198575,0.16235712,93610.0,93568.0,0.24570179]
[1734976198782,0.00015988,93584.0,93568.0,0.14460179]
[1734976198995,0.00015988,93584.0,93574.0,0.213732]
[1734976199212,0.00015988,93584.0,93574.0,0.10398632]
[1734976199426,0.00015988,93584.0,93579.0,0.21372]
[1734976200698,0.00015988,93584.0,93579.0,0.22172]
[1734976200918,0.00015988,93584.0,93579.0,0.008]
[1734976201136,0.00115988,93584.0,93579.0,0.008]
[1734976201362,0.15,93582.0,93579.0,0.008]
[1734976201573,0.15,93580.0,93579.0,0.008]
[1734976201787,0.15,93580.0,93579.0,0.011]
[1734976202640,0.15,93581.0,93579.0,0.011]
[1734976202853,0.36372,93580.0,93579.0,0.008]
[1734976203043,0.15,93579.0,93563.0,0.213757]
[1734976203283,0.15,93579.0,93570.0,0.213742]
[1734976203934,0.15,93579.0,93569.0,0.213744]
[1734976204347,0.00015988,93584.0,93569.0,0.427489]
[1734976204578,0.002,93579.0,93569.0,0.427489]
[1734976204796,0.00015988,93584.0,93569.0,0.427489]
[1734976205211,0.004,93579.0,93569.0,0.427489]
[1734976205429,0.006,93579.0,93569.0,0.42749]
[1734976206053,0.004,93579.0,93569.0,0.213744]
[1734976206293,0.15,93582.0,93569.0,0.213744]
[1734976206709,0.002,93579.0,93569.0,0.213744]
[1734976206934,0.15,93582.0,93569.0,0.213744]
[1734976207143,0.15,93582.0,93559.0,0.213767]
[1734976207144,0.16235712,93580.0,93559.0,0.213767]
[1734976207354,0.15,93574.0,93556.0,0.213773]
[1734976207583,0.003,93579.0,93537.0,0.213818]
[1734976207584,0.2261,93569.0,93537.0,0.01083587]
[1734976207795,0.15,93549.0,93512.0,0.291275]
[1734976208004,0.16235712,93560.0,93512.0,0.291275]
[1734976208005,0.15,93539.0,93512.0,0.291275]
[1734976208234,0.15,93539.0,93526.0,0.10398632]
[1734976208510,0.213816,93538.0,93515.0,0.31785532]
[1734976208741,0.15,93537.0,93521.0,0.213854]
[1734976208957,0.15,93537.0,93506.0,0.0457]
[1734976208958,0.213837,93529.0,93498.0,0.0768]
[1734976209168,0.15,93535.0,93503.0,0.32664863]
[1734976209429,0.15,93535.0,93527.0,0.21384]
[1734976209687,0.15,93535.0,93528.0,0.213839]
[1734976210393,0.213805,93544.0,93528.0,0.213839]
[1734976210641,0.15,93548.0,93519.0,0.213858]
[1734976210642,0.003,93538.0,93519.0,0.213858]
[1734976210859,0.213819,93537.0,93527.0,0.005]
[1734976211066,0.213819,93537.0,93516.0,0.213865]
[1734976211236,0.213844,93527.0,93509.0,0.213882]
[1734976211449,0.213845,93526.0,93511.0,0.213878]
[1734976211674,0.213838,93529.0,93512.0,0.10398632]
[1734976211887,0.21383,93533.0,93515.0,0.0001708]
[1734976212094,0.16235712,93540.0,93516.0,0.213867]
[1734976212326,0.15,93548.0,93515.0,0.0001708]
[1734976212327,0.15,93548.0,93533.0,0.213826]
[1734976212533,0.213768,93559.0,93538.0,0.213814]
[1734976212748,0.213787,93551.0,93535.0,0.213823]
[1734976212960,0.008,93538.0,93535.0,0.213823]
[1734976213225,0.213776,93556.0,93540.0,0.213811]
[1734976213520,0.213769,93559.0,93536.0,0.10398632]
[1734976213678,0.002,93548.0,93545.0,0.213798]
[1734976214331,0.213744,93570.0,93546.0,0.10398632]
[1734976214544,0.213748,93568.0,93554.0,0.213779]
[1734976214790,0.213744,93570.0,93554.0,0.213779]
[1734976215002,0.213726,93578.0,93555.0,0.10398632]
[1734976215003,0.213736,93574.0,93555.0,0.10398632]
[1734976215213,0.049,93584.0,93556.0,0.00106875]
[1734976215214,0.213715,93583.0,93556.0,0.00106875]
[1734976215464,0.213715,93583.0,93569.0,0.213745]
[1734976216153,0.14902574,93604.0,93574.0,0.213732]
[1734976216154,0.213702,93589.0,93574.0,0.213732]
[1734976216596,0.213702,93589.0,93558.0,0.213771]
[1734976216813,0.213711,93585.0,93571.0,0.21374]
[1734976217470,0.15,93587.0,93575.0,0.213732]
[1734976217703,0.363706,93587.0,93571.0,0.21374]
[1734976218438,0.001,93583.0,93571.0,0.21374]
[1734976218645,0.213752,93567.0,93552.0,0.213782]
[1734976218913,0.21375,93568.0,93541.0,0.10398632]
[1734976219179,0.213735,93574.0,93542.0,0.00106884]
[1734976219385,0.15,93580.0,93564.0,0.213756]
[1734976219590,0.15,93580.0,93571.0,0.003]
[1734976219839,0.15,93578.0,93562.0,0.21376]
[1734976220054,0.001,93568.0,93562.0,0.21376]
[1734976220278,0.001,93568.0,93552.0,0.001]
[1734976220491,0.16188788,93562.0,93552.0,0.001]
[1734976220697,0.15,93561.0,93552.0,0.001]
[1734976220912,0.213776,93556.0,93552.0,0.001]
[1734976221181,0.213776,93556.0,93545.0,0.09595513]
[1734976221821,0.213766,93560.0,93534.0,0.09595513]
[1734976222037,0.213815,93539.0,93534.0,0.09595513]
[1734976222254,0.213815,93539.0,93534.0,0.0961151]
[1734976222473,0.15,93536.0,93534.0,0.0961151]
[1734976222686,0.46780932,93535.0,93534.0,0.0961151]
[1734976222898,0.46780932,93535.0,93534.0,0.00015997]
[1734976223534,0.82926706,93535.0,93534.0,0.00015997]
[1734976223715,0.66773506,93535.0,93534.0,0.00015997]
[1734976223980,0.66773506,93535.0,93534.0,0.00115997]
[1734976223981,0.46780932,93535.0,93534.0,0.00115997]
[1734976224390,0.46780932,93535.0,93534.0,0.00015997]
[1734976224820,0.74335232,93535.0,93534.0,0.00015997]
[1734976225026,0.82618406,93535.0,93534.0,0.00015997]
[1734976225447,0.56973506,93535.0,93534.0,0.00015997]
[1734976225860,0.66773506,93535.0,93534.0,0.00015997]
[1734976226067,0.46780932,93535.0,93534.0,0.00015997]
[1734976226276,0.47080932,93535.0,93534.0,0.00015997]
[1734976226484,0.46980932,93535.0,93534.0,0.00015997]
[1734976226818,0.47580932,93535.0,93534.0,0.00015997]
[1734976227363,0.47980932,93535.0,93534.0,0.00015997]
[1734976227606,0.46780932,93535.0,93534.0,0.00015997]
[1734976227802,0.46980932,93535.0,93534.0,0.00015997]
[1734976228010,0.47480932,93535.0,93534.0,0.00015997]
[1734976228163,0.47280932,93535.0,93534.0,0.00015997]
[1734976228585,0.47480932,93535.0,93534.0,0.00015997]
[1734976229190,0.46780932,93535.0,93534.0,0.00015997]
[1734976229393,0.46880932,93535.0,93534.0,0.00015997]
[1734976229604,0.47380932,93535.0,93534.0,0.00015997]
[1734976229993,0.47480932,93535.0,93534.0,0.00015997]
[1734976230431,1.03100606,93535.0,93534.0,0.00015997]
[1734976230875,0.213867,93516.0,93502.0,0.0001708]
[1734976231091,0.56777906,93516.0,93502.0,0.0001708]
[1734976231315,0.80952006,93516.0,93502.0,0.0001708]
[1734976231531,0.363919,93493.0,93492.0,0.02229673]
[1734976232391,0.15,93486.0,93480.0,0.000171]
[1734976232984,0.15,93486.0,93480.0,0.00070435]
[1734976233204,0.15,93484.0,93480.0,0.00070435]
[1734976233400,0.15,93486.0,93480.0,0.00070435]
[1734976233610,0.363884,93509.0,93492.0,0.21392]
[1734976233858,0.001,93486.0,93481.0,0.05145211]
[1734976234022,0.00042431,93486.0,93481.0,0.05145211]
[1734976234230,0.00042431,93486.0,93482.0,0.213944]
[1734976234543,0.00042431,93486.0,93482.0,0.31793032]
[1734976234748,0.00042431,93486.0,93483.0,0.213942]
[1734976235504,0.001,93484.0,93483.0,0.213942]
[1734976235707,0.15,93505.0,93483.0,0.213942]
[1734976235911,0.15,93505.0,93491.0,0.213922]
[1734976236120,0.15,93505.0,93487.0,0.213931]
[1734976236531,0.15,93501.0,93482.0,0.10398632]
[1734976236739,0.002,93484.0,93483.0,0.213942]
[1734976236957,0.15,93501.0,93488.0,0.21393]
[1734976237580,0.213894,93504.0,93501.0,0.00118957]
[1734976237790,0.45431206,93502.0,93501.0,5.7e-07]
[1734976237998,0.45431206,93502.0,93487.0,0.001]
[1734976237999,0.41385674,93488.0,93487.0,0.001]
[1734976238199,0.313947,93481.0,93468.0,0.000171]
[1734976238404,0.41793332,93481.0,93468.0,0.000171]
[1734976238584,0.53125732,93481.0,93468.0,0.000171]
[1734976238800,0.52045732,93481.0,93468.0,0.000171]
[1734976239011,0.51785906,93481.0,93468.0,0.000171]
[1734976239223,0.62048306,93481.0,93468.0,0.000171]
[1734976239419,0.62848306,93481.0,93480.0,0.00170435]
[1734976239653,0.77848306,93481.0,93480.0,0.00170435]
[1734976239862,0.83388306,93481.0,93480.0,0.00170435]
[1734976240252,0.83788306,93481.0,93480.0,0.00170435]
[1734976240665,0.86088306,93481.0,93480.0,3.5e-07]
[1734976240873,0.78048045,93481.0,93480.0,3.5e-07]
[1734976241094,0.41389974,93469.0,93468.0,3.5e-07]
[1734976241305,0.1,93449.0,93440.0,0.000171]
[1734976241512,0.364038,93441.0,93440.0,0.00033113]
[1734976241719,0.46802432,93441.0,93440.0,0.00033113]
[1734976242348,0.214057,93433.0,93389.0,0.2143272]
[1734976242567,0.16222103,93430.0,93412.0,0.00015983]
[1734976242776,0.15,93431.0,93413.0,0.214101]
[1734976242982,0.214064,93430.0,93413.0,0.214101]
[1734976243191,0.00026609,93429.0,93412.0,0.00015983]
[1734976243403,0.15,93431.0,93412.0,0.00015983]
[1734976243404,0.16222103,93422.0,93412.0,0.00015983]
[1734976244646,0.008,93430.0,93413.0,0.10398632]
[1734976244857,0.008,93430.0,93414.0,0.00107028]
[1734976245069,0.214047,93438.0,93421.0,0.214083]
[1734976245280,0.15,93437.0,93423.0,0.21408]
[1734976245483,0.15,93437.0,93421.0,0.214083]
[1734976245691,0.15,93437.0,93415.0,0.10398632]
[1734976245692,0.16222103,93431.0,93415.0,0.10398632]
[1734976245910,0.15,93437.0,93417.0,0.214092]
[1734976246124,0.15,93437.0,93412.0,0.00015983]
[1734976246125,0.15,93429.0,93412.0,0.00015983]
[1734976246338,0.214102,93413.0,93412.0,0.00015983]
[1734976246548,0.364102,93413.0,93412.0,0.00015983]
[1734976246762,0.46808832,93413.0,93412.0,0.00015983]
[1734976246975,0.364102,93413.0,93412.0,0.00033083]
[1734976247814,0.364102,93413.0,93412.0,0.00433083]
[1734976248857,0.214098,93415.0,93412.0,0.00433083]
[1734976249272,0.214082,93423.0,93412.0,0.00433083]
[1734976249481,0.16222103,93422.0,93412.0,0.00433083]
[1734976249686,0.214084,93421.0,93412.0,0.00433083]
[1734976249890,0.214084,93421.0,93412.0,0.00033083]
[1734976250327,0.001,93413.0,93412.0,0.00733083]
[1734976250540,0.001,93413.0,93412.0,0.00433083]
[1734976250747,0.001,93413.0,93412.0,0.00033083]
[1734976250957,0.001,93413.0,93412.0,0.00333083]
[1734976251219,0.001,93421.0,93412.0,0.00333083]
[1734976251434,0.001,93413.0,93412.0,0.00333083]
[1734976251867,0.001,93413.0,93412.0,0.00733083]
[1734976252628,0.37630403,93422.0,93412.0,0.00433083]
[1734976252829,0.214083,93422.0,93412.0,0.00433083]
[1734976253153,0.001,93421.0,93412.0,0.00333083]
[1734976253358,0.001,93421.0,93412.0,0.00433083]
[1734976253583,0.001,93413.0,93412.0,0.00733083]
[1734976253779,0.001,93413.0,93412.0,0.00033083]
[1734976254209,0.001,93413.0,93412.0,0.00533083]
[1734976254590,0.214083,93422.0,93412.0,0.00233083]
[1734976254815,0.428166,93422.0,93412.0,0.00033083]
[1734976255155,0.214083,93422.0,93412.0,0.00433083]
[1734976255341,0.15,93424.0,93412.0,0.00433083]
[1734976255553,0.21408,93423.0,93412.0,0.00433083]
[1734976255914,0.001,93413.0,93412.0,0.00433083]
[1734976256114,0.15,93424.0,93412.0,0.00433083]
[1734976256314,0.15,93429.0,93412.0,0.00033083]
[1734976256662,0.214092,93418.0,93412.0,0.00033083]
[1734976256866,0.214092,93418.0,93412.0,0.00233083]
[1734976257077,0.001,93413.0,93412.0,0.00233083]
[1734976257286,0.001,93413.0,93412.0,0.00033083]
[1734976257524,0.15,93425.0,93412.0,0.00133083]
[1734976257956,0.36408,93423.0,93412.0,0.00133083]
[1734976258127,0.21408,93423.0,93412.0,0.00033083]
[1734976258564,0.214087,93420.0,93412.0,0.00033083]
[1734976259052,0.15,93425.0,93412.0,0.00033083]
[1734976259250,0.001,93413.0,93412.0,0.00433083]
[1734976259812,0.001,93413.0,93412.0,0.00033083]
[1734976259982,0.001,93413.0,93412.0,0.00433083]
[1734976260186,0.15,93417.0,93412.0,0.00233083]
[1734976260446,0.15,93417.0,93412.0,0.00633083]
[1734976260447,0.428192,93416.0,93412.0,0.00633083]
[1734976260787,0.15,93417.0,93412.0,0.00633083]
[1734976260788,0.2141,93414.0,93412.0,0.00433083]
[1734976260990,0.2141,93414.0,93412.0,0.00833083]
[1734976261303,0.16222103,93422.0,93412.0,0.00833083]
[1734976261510,0.214096,93416.0,93412.0,0.00833083]
[1734976261910,0.214098,93415.0,93412.0,0.00433083]
[1734976262307,0.214098,93415.0,93412.0,0.00833083]
[1734976262520,0.214098,93415.0,93412.0,0.00033083]
[1734976262727,0.214098,93415.0,93412.0,0.00333083]
[1734976262947,0.214098,93415.0,93412.0,0.00733083]
[1734976263154,0.214098,93415.0,93412.0,0.00033083]
[1734976263362,0.214098,93415.0,93412.0,0.00433083]
[1734976263569,0.429197,93415.0,93412.0,0.00733083]
[1734976263779,0.429197,93415.0,93412.0,0.00333083]
[1734976264018,0.430197,93415.0,93412.0,0.00433083]
[1734976264451,0.430197,93415.0,93412.0,0.00533083]
[1734976264665,0.002,93415.0,93412.0,0.00533083]
[1734976265352,0.2141,93414.0,93412.0,0.00533083]
[1734976265563,0.15,93413.0,93412.0,0.00433083]
[1734976265774,0.15,93413.0,93412.0,0.00033083]
[1734976265987,0.25398632,93413.0,93412.0,0.00233083]
[1734976266195,0.25398632,93413.0,93412.0,0.00633083]
[1734976266440,0.25398632,93413.0,93412.0,0.00233083]
[1734976266652,0.25398632,93413.0,93412.0,0.00433083]
[1734976266858,0.25398632,93413.0,93412.0,0.00033083]
[1734976267071,0.15,93413.0,93412.0,0.00033083]
[1734976267281,0.15,93413.0,93412.0,0.00333083]
[1734976267913,0.25398632,93413.0,93412.0,0.00333083]
[1734976268543,0.25398632,93413.0,93412.0,0.00133083]
[1734976269215,0.25398632,93413.0,93412.0,0.00033083]
[1734976269627,0.25398632,93413.0,93412.0,0.00133083]
[1734976269842,0.15,93413.0,93412.0,0.00133083]
[1734976270530,0.15,93413.0,93412.0,0.00033083]
[1734976270762,0.151,93413.0,93412.0,0.00033083]
[1734976270950,0.15,93413.0,93412.0,0.00033083]
[1734976271734,0.001,93413.0,93412.0,0.00033083]
[1734976272282,8.56e-05,93414.0,93412.0,0.00233083]
[1734976272514,0.001,93413.0,93412.0,0.00233083]
[1734976272717,0.001,93413.0,93412.0,0.00033083]
[1734976272895,0.001,93413.0,93412.0,0.00333083]
[1734976273197,8.56e-05,93414.0,93412.0,0.00033083]
[1734976273373,8.56e-05,93414.0,93412.0,0.00133083]
[1734976273578,0.0010856,93414.0,93412.0,0.00533083]
[1734976273777,0.0010856,93414.0,93412.0,0.00133083]
[1734976274208,0.215102,93413.0,93412.0,0.00533083]
[1734976274817,0.46908832,93413.0,93412.0,0.00433083]
[1734976274993,0.46908832,93413.0,93412.0,0.00733083]
[1734976275546,0.46808832,93413.0,93412.0,0.00033083]
[1734976275748,0.46808832,93413.0,93412.0,0.00433083]
[1734976275920,0.46808832,93413.0,93412.0,0.00533083]
[1734976276319,0.25498632,93413.0,93384.0,0.22065453]
[1734976276593,0.214135,93399.0,93389.0,0.00053279]
[1734976277170,0.214137,93398.0,93389.0,0.00053279]
[1734976277384,0.15,93399.0,93389.0,0.00053279]
[1734976277532,0.364155,93390.0,93389.0,0.00053279]
[1734976278481,0.46814132,93390.0,93389.0,0.00053279]
[1734976278685,0.54904132,93390.0,93389.0,0.00053279]
[1734976278898,0.54939949,93390.0,93389.0,0.00353279]
[1734976279149,0.55039949,93390.0,93389.0,0.00453279]
[1734976279364,0.364155,93390.0,93389.0,0.00053279]
[1734976279565,0.15,93397.0,93389.0,0.00053279]
[1734976279797,0.16222103,93410.0,93389.0,0.00453279]
[1734976279798,0.001,93390.0,93389.0,0.00453279]
[1734976280005,0.001,93390.0,93389.0,0.18408976]
[1734976280206,0.001,93390.0,93389.0,0.23061911]
[1734976280838,0.003,93390.0,93389.0,0.23061911]
[1734976281048,0.003,93390.0,93389.0,0.12663279]
[1734976281453,0.003,93390.0,93389.0,0.05263279]
[1734976281767,0.003,93390.0,93389.0,0.1818808]
[1734976281961,0.214046,93438.0,93413.0,0.214102]
[1734976282169,0.214046,93438.0,93413.0,0.31808832]
[1734976282562,0.214046,93438.0,93413.0,0.36658832]
[1734976282791,0.09992574,93463.0,93413.0,0.36658832]
[1734976282792,0.214016,93451.0,93413.0,0.38958832]
[1734976283015,0.09510265,93464.0,93430.0,0.214064]
[1734976283230,0.213988,93463.0,93430.0,0.34105032]
[1734976283427,0.213999,93459.0,93430.0,0.34105032]
[1734976283632,0.213988,93463.0,93430.0,0.34634413]